fUST/lending_fUST_20250620
["ID","MTS","AMOUNT","RATE_DAILY","PERIOD"]
[366647721,1750367444034,-500.0,0.00024799,2]
[366647723,1750367444043,-50368.18625386,0.000248,7]
[366647725,1750367444052,-1311.43,0.000248,7]
[366647726,1750367444062,-2000.0,0.000248,2]
[366647728,1750367444071,-2000.0,0.000248,2]
[366647730,1750367444080,-3175.87,0.000248,7]
[366647732,1750367444089,-2000.0,0.000248,2]
[366647734,1750367444098,-5178.34685558,0.000248,2]
[366647736,1750367444108,-500.0,0.000248,2]
[366647738,1750367444117,-1000.0,0.000248,2]
[366647740,1750367444127,-553.0,0.00024801,3]
[366647742,1750367444136,-500.0,0.00024827,2]
[366647744,1750367444145,-168.0,0.00024835,2]
[366647746,1750367444154,-168.0,0.00024838,2]
[366647748,1750367444163,-500.0,0.00024855,2]
[366647750,1750367444173,-168.0,0.00024857,2]
[366647751,1750367444182,-681.1,0.00024876,2]
[366647753,1750367444191,-1599.0515968,0.00024876,3]
[366647755,1750367444200,-168.0,0.00024879,2]
[366647757,1750367444211,-500.0,0.00024882,2]
[366647759,1750367444220,-580.02,0.0002489,3]
[366647761,1750367444229,-290.01,0.0002489,3]
[366647763,1750367444238,-870.07,0.0002489,3]
[366647765,1750367444248,-10356.6937112,0.0002489,2]
[366647767,1750367444257,-85485.33,0.000249,2]
[366647769,1750367444268,-161.48897346,0.000249,2]
[366647771,1750367444277,-151.0,0.000249,5]
[366647773,1750367444287,-151.0,0.000249,9]
[366647775,1750367444296,-6339.19993206,0.000249,2]
[366647777,1750367444306,-32891.05577716,0.000249,2]
[366648005,1750367446612,-408.70424004,0.000249,2]
[366648007,1750367446625,-1192.26948473,0.000249,2]
[366648074,1750368227973,190.663429,0.00013699,2]
[366648075,1750368228186,190.663429,0.00020187,2]
[366648388,1750368795593,150.05036267,0.0002,2]
[366648392,1750369201207,182.089881,0.00013699,2]
[366648393,1750369201429,182.089881,0.00020187,2]
[366648395,1750369233193,5000.0,0.000202,2]
[366648396,1750369248489,5000.0,0.000202,2]
[366648406,1750369831898,-161.19965275,0.000224,2]
[366648407,1750369831908,-300.0,0.00022498,2]
[366648408,1750369831927,-300.0,0.00022498,2]
[366648409,1750369831939,-300.0,0.00022498,2]
[366648410,1750369831949,-500.0,0.00022499,2]
[366648412,1750369831959,-500.0,0.00022499,2]
[366648414,1750369831969,-191.30350163,0.00022499,2]
[366648416,1750369831979,-500.0,0.00022499,2]
[366648418,1750369831989,-500.0,0.00022499,2]
[366648421,1750369832000,-500.0,0.00022499,2]
[366648423,1750369832010,-500.0,0.00022499,2]
[366648426,1750369832020,-500.0,0.00022499,2]
[366648429,1750369832029,-215.32113758,0.00022499,2]
[366648432,1750369832039,-500.0,0.00022499,2]
[366648435,1750369832048,-500.0,0.00022499,2]
[366648438,1750369832058,-400.0,0.00022499,2]
[366648439,1750369832067,-500.0,0.00022499,2]
[366648440,1750369832077,-500.0,0.00022499,2]
[366648441,1750369832086,-500.0,0.00022499,2]
[366648442,1750369832096,-409.42662906,0.00022499,2]
[366648443,1750369832105,-460.0,0.00022499,2]
[366648444,1750369832115,-1284.79199349,0.000225,2]
[366648445,1750369832125,-705.05339489,0.000225,2]
[366648446,1750369832137,-3660.74908796,0.000225,2]
[366648447,1750369832147,-6396.97353874,0.000225,2]
[366648448,1750369832158,-1067.56713816,0.000225,2]
[366648589,1750369838029,-12277.33090738,0.000225,2]
[366648590,1750369838042,-4753.84036,0.000225,2]
[366648625,1750369839974,-799.83420667,0.000225,2]
[366648640,1750369840107,-2310.03150781,0.000225,2]
[366648642,1750369840120,-1026.52084843,0.000225,2]
[366648644,1750369840132,-2502.39999994,0.000225,2]
[366648762,1750369846086,-45470.15149287,0.000225,2]
[366648763,1750369846096,-249.377,0.000225,2]
[366648764,1750369846106,-500.0,0.000225,2]
[366648765,1750369846116,-460.0,0.00022773,2]
[366648766,1750369846126,-161.19965274,0.0002293,2]
[366648767,1750369846135,-536.01,0.00023,2]
[366648768,1750369846144,-460.0,0.00023047,2]
[366648769,1750369846154,-500.0,0.00023048,2]
[366648770,1750369846163,-653.0,0.00023226,2]
[366648771,1750369846175,-152.916,0.00023226,2]
[366648772,1750369846185,-460.0,0.00023321,2]
[366648773,1750369846194,-168.0,0.00023452,2]
[366648774,1750369846203,-161.19965274,0.00023459,2]
[366648776,1750369846212,-160.0,0.00023483,2]
[366648777,1750369846221,-500.0,0.00023483,2]
[366648779,1750369846231,-3825.0,0.00023483,3]
[366648780,1750369846241,-3821.0,0.00023483,3]
[366648781,1750369846251,-3821.0,0.00023483,3]
[366648782,1750369846260,-3821.0,0.00023483,3]
[366648783,1750369846270,-3821.0,0.00023483,3]
[366648784,1750369846282,-207.4,0.00023558,2]
[366648785,1750369846292,-460.0,0.00023595,2]
[366648786,1750369846301,-500.0,0.00023791,2]
[366648787,1750369846311,-500.0,0.00023829,2]
[366648788,1750369846320,-500.0,0.00023863,2]
[366648789,1750369846329,-460.0,0.00023869,2]
[366648790,1750369846339,-1206.52,0.0002388,3]
[366648791,1750369846348,-603.26,0.0002388,3]
[366648792,1750369846358,-301.63,0.0002388,3]
[366648793,1750369846367,-150.81,0.0002388,3]
[366648794,1750369846377,-452.48,0.0002388,3]
[366648795,1750369846386,-59298.84700146,0.0002389,2]
[366648796,1750369846395,-1162.22970179,0.000239,10]
[366648797,1750369846405,-2200.0,0.00023913,2]
[366648798,1750369846414,-1162.22970161,0.00023969,10]
[366648799,1750369846423,-503.34321714,0.00023973,2]
[366648800,1750369846432,-161.19965274,0.00023989,2]
[366648801,1750369846442,-425.1149272,0.0002399,2]
[366648802,1750369846451,-227858.02088998,0.00024,14]
[366648803,1750369846464,-5000.0,0.00024,14]
[366648806,1750370469149,173.324406,0.00013699,2]
[366648807,1750370469356,173.324406,0.00020187,2]
[366648809,1750370811279,160.0,0.0002,3]
[366648810,1750370811685,160.0,0.0002,7]
[366648811,1750370813464,160.0,0.0002,3]
[366648812,1750370813885,160.0,0.0002,7]
[366648847,1750371032113,-1556.72522567,0.0002079,2]
[366648854,1750371032172,-854.03009663,0.0002079,2]
[366648856,1750371032182,-160.0,0.00021,2]
[366648858,1750371032191,-845.93775772,0.00021295,2]
[366648860,1750371032200,-213.47708638,0.00021295,2]
[366648862,1750371032210,-836.1357872,0.00021295,2]
[366648864,1750371032220,-230.0259007,0.00021295,2]
[366648866,1750371032229,-160.0,0.00021295,2]
[366648868,1750371032239,-160.0,0.00021295,2]
[366648870,1750371032249,-424.78309573,0.00021295,2]
[366648872,1750371032261,-160.0,0.00021295,2]
[366648874,1750371032270,-160.0,0.00021295,2]
[366648876,1750371032281,-315.52658788,0.00021704,2]
[366648878,1750371032290,-4431.741112,0.000222,2]
[366648880,1750371032301,-3244.7842018,0.00022288,2]
[366648882,1750371032310,-179.068301,0.0002246,2]
[366648884,1750371032319,-160.0,0.0002285,3]
[366648886,1750371032330,-1324.23411197,0.000229,8]
[366648888,1750371032340,-482.41,0.00023,2]
[366648890,1750371032349,-300.0,0.00023002,2]
[366648892,1750371032358,-1324.23411177,0.00023003,8]
[366648894,1750371032367,-1324.23411177,0.00023107,8]
[366648896,1750371032377,-1324.23411177,0.0002321,8]
[366648898,1750371032385,-1324.23411177,0.00023314,9]
[366648900,1750371032396,-406.0,0.00023323,2]
[366648902,1750371032406,-460.0,0.00023416,2]
[366648904,1750371032416,-1153.94040477,0.00023417,9]
[366648906,1750371032428,-170.293707,0.00023417,9]
[366648908,1750371032437,-160.0,0.00023483,2]
[366648910,1750371032447,-1089.706293,0.00023521,9]
[366649105,1750371038063,-223.3095274,0.00023002,2]
[366649106,1750371038073,-213.74651754,0.00023002,2]
[366649109,1750371038115,-286.25348246,0.00023002,2]
[366649110,1750371038125,-279.78651754,0.00023002,2]
[366649248,1750371430482,160.0,0.0002,3]
[366649250,1750371562622,165.114297,0.00013699,2]
[366649251,1750371562961,165.114297,0.00020187,2]
[366649278,1750372232309,-2867.36538825,0.00021437,2]
[366649285,1750372232374,-2132.63461175,0.00021437,2]
[366649287,1750372232384,-160.0,0.00021705,2]
[366649289,1750372232394,-483.91245114,0.00021951,2]
[366649291,1750372232404,-500.0,0.00021951,2]
[366649293,1750372232413,-500.0,0.00021951,2]
[366649295,1750372232423,-500.0,0.00021951,2]
[366649297,1750372232434,-500.0,0.00021951,2]
[366649300,1750372232443,-500.0,0.00021951,2]
[366649303,1750372232451,-300.0,0.00021951,2]
[366649304,1750372232461,-642.39599675,0.00021952,2]
[366649305,1750372232471,-2182.90124143,0.00021952,2]
[366649306,1750372232482,-80779.70600853,0.00021952,2]
[366649307,1750372232491,-424.78309573,0.00022537,2]
[366649308,1750372232501,-160.0,0.00022758,2]
[366649309,1750372232511,-160.0,0.00022763,2]
[366649310,1750372232520,-160.0,0.00022763,2]
[366649311,1750372232530,-836.1357872,0.00022763,2]
[366649312,1750372232540,-845.93775772,0.00022763,2]
[366649313,1750372232550,-160.0,0.00022763,2]
[366649314,1750372232560,-230.0259007,0.00022763,2]
[366649315,1750372232570,-213.47708638,0.00022763,2]
[366649316,1750372232580,-160.0,0.00022763,2]
[366649317,1750372232590,-12544.68530873,0.00022763,2]
[366649318,1750372232599,-300.0,0.00022764,2]
[366649319,1750372232610,-6495.46663,0.00022764,2]
[366649320,1750372232620,-199.502,0.00022766,2]
[366649321,1750372232630,-460.0,0.00022769,2]
[366649322,1750372232640,-1166.01242129,0.000229,8]
[366649323,1750372232650,-546.94,0.00023,2]
[366649324,1750372232660,-1166.01242126,0.00023003,8]
[366649325,1750372232669,-201.57735746,0.00023043,2]
[366649326,1750372232679,-1166.01242126,0.00023107,8]
[366649327,1750372232689,-500.0,0.0002321,2]
[366649328,1750372232699,-1166.01242126,0.0002321,8]
[366649329,1750372232709,-1166.01242126,0.00023314,9]
[366649330,1750372232719,-1166.01242126,0.00023417,9]
[366649331,1750372232729,-162.34237939,0.00023452,2]
[366649332,1750372232738,-168.0,0.00023453,2]
[366649333,1750372232748,-1252.47108,0.0002351,3]
[366649334,1750372232757,-1166.01242126,0.00023521,9]
[366649335,1750372232767,-194.21138214,0.00023589,2]
[366649336,1750372232777,-500.0,0.000236,2]
[366649337,1750372232787,-1166.01242126,0.00023624,9]
[366649338,1750372232796,-500.0,0.00023625,2]
[366649339,1750372232805,-500.0,0.00023629,2]
[366649340,1750372232815,-396.88900501,0.00023636,2]
[366649341,1750372232824,-5000.0,0.00023636,2]
[366649342,1750372232833,-207.4,0.00023636,2]
[366649343,1750372232843,-406.0,0.00023653,2]
[366649344,1750372232852,-221.98739982,0.00023685,2]
[366649345,1750372232862,-168.0,0.00023703,2]
[366649346,1750372232872,-1166.01242126,0.00023728,9]
[366649347,1750372232881,-162.34237939,0.00023753,2]
[366649348,1750372232891,-1166.01242126,0.00023831,10]
[366649349,1750372232901,-420.0,0.00023854,2]
[366649350,1750372232911,-600.0,0.00023904,2]
[366649351,1750372232921,-1166.01242126,0.00023934,10]
[366649352,1750372232931,-20200.74882157,0.0002394,7]
[366649353,1750372232948,-233710.05636,0.0002394,7]
[366649354,1750372232958,-500.0,0.00023973,2]
[366649355,1750372232968,-234.0104086,0.0002399,2]
[366649356,1750372232980,-754.07,0.0002399,3]
[366649357,1750372232991,-377.03,0.0002399,3]
[366649358,1750372233001,-188.52,0.0002399,3]
[366649359,1750372233010,-565.58,0.0002399,3]
[366649360,1750372233019,-500.0,0.00023998,6]
[366649361,1750372233030,-500.0,0.00023999,2]
[366649362,1750372233039,-271.55902274,0.00023999,30]
[366649363,1750372233049,-160.0,0.00023999,2]
[366649364,1750372233058,-142963.706731,0.00024,14]
[366649383,1750372238188,-380.72479631,0.00021951,2]
[366649385,1750372238199,-500.0,0.00021951,2]
[366649399,1750372238328,-500.0,0.00021951,2]
[366649402,1750372238346,-240.19159027,0.00021951,2]
[366649404,1750372238356,-1185.47351735,0.00024,14]
[366649406,1750372238371,-729.81289455,0.00024,14]
[366649690,1750372712457,165.114297,0.00013699,2]
[366649694,1750372993256,5000.0,0.000202,2]
[366649772,1750373432692,-5000.0,0.00020543,2]
[366649774,1750373432702,-192.25450417,0.00020651,2]
[366649776,1750373432712,-168.46429335,0.00020751,2]
[366649778,1750373432722,-165.114297,0.00020951,2]
[366649780,1750373432732,-500.0,0.00021064,2]
[366649782,1750373432741,-192.25450416,0.00021631,2]
[366649784,1750373432751,-160.0,0.00021716,2]
[366649786,1750373432760,-300.0,0.0002173,2]
[366649788,1750373432770,-300.0,0.0002173,2]
[366649790,1750373432782,-328.0,0.0002173,2]
[366649792,1750373432791,-845.93775772,0.00021731,2]
[366649794,1750373432801,-230.0259007,0.00021731,2]
[366649796,1750373432810,-160.0,0.00021731,2]
[366649798,1750373432820,-836.1357872,0.00021731,2]
[366649800,1750373432829,-8.17075292,0.00021731,2]
[366650257,1750373438402,-3356.69120669,0.00021731,2]
[366650258,1750373438414,-3175.96831784,0.00021731,2]
[366650259,1750373438426,-2552.53061309,0.00021731,2]
[366650260,1750373438503,-460.0,0.00021731,2]
[366650290,1750373443501,-5000.0,0.00021514,2]
[366650291,1750373443511,-2991.32441819,0.00021731,2]
[366650292,1750373443522,-424.78309573,0.00021731,2]
[366650293,1750373443533,-1055.29362902,0.000219,6]
[366650294,1750373443544,-460.0,0.00021917,2]
[366650296,1750373443555,-1055.29362898,0.00022038,6]
[366650297,1750373443564,-1055.29362898,0.00022176,6]
[366650298,1750373443574,-460.0,0.00022191,2]
[366650299,1750373443585,-1055.29362898,0.00022314,7]
[366650300,1750373443595,-706.13,0.00022403,3]
[366650301,1750373443604,-1055.29362898,0.00022452,7]
[366650302,1750373443618,-460.0,0.00022465,2]
[366650303,1750373443627,-194.23897485,0.0002249,2]
[366650304,1750373443637,-159.601,0.00022503,2]
[366650306,1750373443647,-706.13,0.00022503,7]
[366650308,1750373443658,-1055.29362898,0.0002259,7]
[366650310,1750373443668,-706.13,0.00022603,5]
[366650312,1750373443677,-706.13,0.00022703,4]
[366650314,1750373443688,-1055.29362898,0.00022728,7]
[366650317,1750373443698,-460.0,0.00022739,2]
[366650320,1750373443708,-196.90339151,0.00022763,2]
[366650323,1750373443717,-160.0,0.00022763,2]
[366650326,1750373443727,-706.13,0.00022803,6]
[366650329,1750373443737,-1055.29362898,0.00022866,8]
[366650332,1750373443746,-706.13,0.00022903,4]
[366650335,1750373443756,-492.24,0.00023,2]
[366650337,1750373443765,-706.13,0.00023003,2]
[366650339,1750373443775,-1055.29362898,0.00023003,8]
[366650341,1750373443785,-460.0,0.00023013,2]
[366650343,1750373443795,-706.13,0.00023103,3]
[366650345,1750373443804,-1055.29362898,0.00023141,8]
[366650346,1750373443814,-500.0,0.00023195,2]
[366650348,1750373443823,-706.13,0.00023203,7]
[366650350,1750373443833,-423.75752643,0.00023256,2]
[366650352,1750373443843,-1055.29362898,0.00023279,8]
[366650354,1750373443854,-544.25,0.00023287,2]
[366650356,1750373443864,-500.0,0.00023288,2]
[366650358,1750373443874,-706.13,0.00023303,2]
[366650360,1750373443884,-706.13,0.00023403,2]
[366650362,1750373443894,-1055.29362898,0.00023417,9]
[366650364,1750373443904,-706.13,0.00023503,4]
[366650366,1750373443915,-1073.54664,0.00023519,3]
[366650368,1750373443924,-1055.29362898,0.00023555,9]
[366650370,1750373443934,-500.0,0.00023577,2]
[366650372,1750373443943,-706.13,0.00023603,4]
[366650374,1750373443953,-420.0,0.0002362,2]
[366650376,1750373443962,-420.0,0.0002362,2]
[366650378,1750373443972,-207.4,0.00023636,2]
[366650380,1750373443982,-1055.29362898,0.00023693,9]
[366650382,1750373443992,-706.13,0.00023703,7]
[366650384,1750373444001,-2160.0,0.00023726,2]
[366650386,1750373444011,-500.0,0.00023755,2]
[366650388,1750373444021,-706.13,0.00023803,4]
[366650390,1750373444030,-1055.29362898,0.00023831,10]
[366650392,1750373444040,-706.13,0.00023903,7]
[366650394,1750373444049,-168.0,0.00023918,2]
[366650396,1750373444059,-1055.29362898,0.00023969,10]
[366650398,1750373444068,-500.0,0.00023973,2]
[366650400,1750373444077,-500.0,0.00023973,2]
[366650402,1750373444087,-500.0,0.00023973,2]
[366650404,1750373444097,-600.0,0.00023973,2]
[366650406,1750373444107,-500.0,0.00023973,2]
[366650422,1750373444255,-500.0,0.00023973,2]
[366650424,1750373444265,-500.0,0.00023973,2]
[366650426,1750373444275,-500.0,0.00023973,2]
[366650428,1750373444286,-500.0,0.00023978,2]
[366650429,1750373444296,-439.87,0.0002399,3]
[366650431,1750373444305,-219.93,0.0002399,3]
[366650432,1750373444315,-659.84,0.0002399,3]
[366650433,1750373444325,-338.7387158,0.00023999,2]
[366650434,1750373444335,-500.0,0.00023999,2]
[366650435,1750373444346,-516.50735742,0.00023999,2]
[366650436,1750373444356,-500.0,0.00023999,2]
[366650437,1750373444365,-500.0,0.00023999,2]
[366650438,1750373444374,-500.0,0.00023999,2]
[366650439,1750373444384,-500.0,0.00023999,2]
[366650440,1750373444394,-500.0,0.00023999,2]
[366650441,1750373444404,-500.0,0.00023999,2]
[366650442,1750373444414,-550.0,0.00023999,2]
[366650443,1750373444424,-72821.33334687,0.00024,14]
[366650445,1750373444434,-76654.33646717,0.00024,30]
[366650447,1750373444444,-26938.7805974,0.00024,4]
[366650449,1750373444455,-163.70499444,0.00024,2]
[366650450,1750373444464,-500.0,0.00024,3]
[366650451,1750373444474,-500.0,0.00024,3]
[366650452,1750373444483,-213.47708638,0.00024,3]
[366650453,1750373444492,-213.47708638,0.00024,7]
[366650454,1750373444502,-213.47708638,0.00024,3]
[366650455,1750373444512,-213.47708638,0.00024,7]
[366650456,1750373444522,-213.47708638,0.00024,3]
[366650457,1750373444531,-213.47708638,0.00024,7]
[366650458,1750373444541,-12500.0,0.00024,3]
[366650460,1750373444551,-5194.58431803,0.00024,3]
[366650461,1750373444627,-542.075,0.00024,3]
[366650469,1750373445103,-416.65490336,0.00024,3]
[366650486,1750373446700,-16824.76130044,0.00024,3]
[366650487,1750373446716,-1085.55395,0.00024,3]
[366650488,1750373446728,-7244.1385819,0.00024,3]
[366650491,1750373883090,164.68858,0.00013699,2]
[366650497,1750374458087,1665.37860153,0.00025,120]
[366650607,1750374638587,-1267.00902523,0.0002063,2]
[366650608,1750374638598,-359.4703468,0.00021261,2]
[366650609,1750374638608,-164.68858,0.00021404,2]
[366650610,1750374638617,-168.0,0.00022095,2]
[366650611,1750374638628,-3000.0,0.000222,2]
[366650612,1750374638637,-397.42656965,0.0002221,2]
[366650638,1750374942641,164.262863,0.00013699,2]
[366650639,1750375111668,1000.0,0.00025141,60]
[366650640,1750375127159,1000.53,0.00025141,60]
[366650652,1750375756999,390.64363892,0.000246,120]
[366650655,1750375792806,168.0,0.00020157,2]
[366650711,1750375832014,-168.0,0.00020519,2]
[366650713,1750375832024,-168.0,0.0002099,2]
[366650715,1750375832036,-168.0,0.00020999,2]
[366650717,1750375832046,-168.0,0.00021173,2]
[366650719,1750375832056,-168.0,0.00021297,2]
[366650721,1750375832066,-168.0,0.00021312,2]
[366650723,1750375832075,-168.0,0.00021664,2]
[366650725,1750375832086,-168.0,0.000218,2]
[366650727,1750375832095,-169.95910302,0.000219,2]
[366650729,1750375832105,-164.262863,0.00021918,2]
[366650731,1750375832115,-168.0,0.00021945,2]
[366650733,1750375832124,-500.0,0.00021998,2]
[366650734,1750375832134,-441.04496116,0.00021998,2]
[366650736,1750375832144,-503.25807226,0.00021998,2]
[366650738,1750375832154,-300.0,0.00021999,2]
[366650740,1750375832163,-300.0,0.00021999,2]
[366650742,1750375832173,-5708.36368235,0.00022,2]
[366650849,1750375837873,-2897.31331626,0.00022,2]
[366650850,1750375837883,-2215.71554643,0.00022,2]
[366650851,1750375837897,-11168.69130891,0.00022,2]
[366650852,1750375838049,-1264.88544183,0.00022,2]
[366650853,1750375838060,-1857.30215627,0.00022,2]
[366651312,1750375845857,-516.95631384,0.00022,2]
[366652983,1750376029294,10000.0,0.0002,2]
[366652985,1750376065353,163.464644,0.00013699,2]
[366652990,1750376715807,3540.96507175,0.000202,2]
[366653007,1750377032027,-195.0856988,0.00020871,2]
[366653008,1750377032037,-160.0,0.00020989,2]
[366653009,1750377032047,-160.0,0.00021415,2]
[366653010,1750377032056,-168.0,0.00021581,2]
[366653011,1750377032067,-788.0,0.00021729,2]
[366653012,1750377032077,-12544.68530873,0.00021749,2]
[366653013,1750377032086,-160.0,0.00021749,2]
[366653014,1750377032095,-424.78309573,0.00021749,2]
[366653015,1750377032105,-845.93775772,0.00021749,2]
[366653016,1750377032114,-160.0,0.00021749,2]
[366653017,1750377032124,-300.0,0.0002175,2]
[366653018,1750377032133,-300.0,0.0002175,2]
[366653019,1750377032142,-213.47708638,0.00021751,2]
[366653020,1750377032152,-230.0259007,0.00021751,2]
[366653021,1750377032161,-160.0,0.00021751,2]
[366653022,1750377032170,-160.0,0.00021751,2]
[366653023,1750377032180,-160.0,0.00021751,2]
[366653024,1750377032190,-160.0,0.00021751,2]
[366653025,1750377032199,-657.32138376,0.00021751,2]
[366653052,1750377038135,-409.42662906,0.00021748,2]
[366653053,1750377038145,-178.81440344,0.00021751,2]
[366653054,1750377038155,-300.0,0.00021756,2]
[366653055,1750377038164,-788.0,0.00021806,2]
[366653056,1750377038174,-1175.40816177,0.000219,6]
[366653057,1750377038183,-365.4795681,0.000219,2]
[366653058,1750377038193,-460.0,0.00021917,2]
[366653059,1750377038202,-1000.0,0.00021917,6]
[366653061,1750377038211,-460.0,0.00021917,6]
[366653063,1750377038221,-440.0,0.00021917,6]
[366653065,1750377038231,-159.602,0.00021917,2]
[366653067,1750377038240,-460.0,0.00021917,6]
[366653068,1750377038250,-460.0,0.00021917,6]
[366653069,1750377038260,-460.0,0.00021917,6]
[366653070,1750377038269,-460.0,0.00021917,6]
[366653071,1750377038279,-460.0,0.00021917,6]
[366653072,1750377038289,-460.0,0.00021917,6]
[366653073,1750377038298,-460.0,0.00021917,6]
[366653074,1750377038308,-260.48411615,0.00021917,6]
[366653075,1750377038317,-460.0,0.00021917,6]
[366653076,1750377038327,-460.0,0.00021917,6]
[366653077,1750377038336,-460.0,0.00021917,6]
[366653078,1750377038346,-460.0,0.00021917,6]
[366653079,1750377038355,-460.0,0.00021917,6]
[366653080,1750377038364,-460.0,0.00021917,6]
[366653081,1750377038374,-460.0,0.00021917,6]
[366653082,1750377038383,-460.0,0.00021917,6]
[366653083,1750377038392,-440.0,0.00021917,6]
[366653084,1750377038412,-460.0,0.00021917,6]
[366653085,1750377038424,-420.0,0.00021917,6]
[366653086,1750377038433,-460.0,0.00021917,6]
[366653087,1750377038443,-460.0,0.00021917,6]
[366653088,1750377038452,-460.0,0.00021917,6]
[366653089,1750377038462,-1998.95,0.00021917,6]
[366653090,1750377038471,-217.92814601,0.00021917,6]
[366653091,1750377038481,-460.0,0.00021917,6]
[366653092,1750377038491,-460.0,0.00021917,6]
[366653093,1750377038501,-460.0,0.00021917,6]
[366653094,1750377038511,-466.52,0.00021917,6]
[366653095,1750377038521,-460.0,0.00021917,6]
[366653096,1750377038531,-589.43592663,0.00021917,6]
[366653097,1750377038541,-460.0,0.00021917,6]
[366653098,1750377038551,-194.96359167,0.00021917,6]
[366653099,1750377038560,-460.0,0.00021917,6]
[366653100,1750377038570,-460.0,0.00021917,6]
[366653101,1750377038580,-460.0,0.00021917,6]
[366653102,1750377038590,-460.0,0.00021917,6]
[366653103,1750377038600,-460.0,0.00021917,6]
[366653104,1750377038610,-155.21341522,0.00021917,6]
[366653105,1750377038621,-460.0,0.00021917,6]
[366653106,1750377038631,-163.464644,0.00021918,2]
[366653107,1750377038642,-239.22191142,0.00021979,2]
[366653108,1750377038651,-4302.83849931,0.00021998,2]
[366653109,1750377038661,-7324.64614859,0.00021998,2]
[366653110,1750377038672,-500.0,0.00021998,2]
[366653111,1750377038684,-500.0,0.00021998,2]
[366653112,1750377038694,-500.0,0.00021998,2]
[366653113,1750377038703,-500.0,0.00021998,2]
[366653114,1750377038714,-367.75519337,0.00021998,2]
[366653115,1750377038724,-500.0,0.00021998,2]
[366653116,1750377038733,-500.0,0.00021998,2]
[366653117,1750377038744,-500.0,0.00021998,2]
[366653118,1750377038754,-500.0,0.00021998,2]
[366653119,1750377038764,-500.0,0.00021998,2]
[366653120,1750377038774,-500.0,0.00021998,2]
[366653121,1750377038784,-500.0,0.00021998,2]
[366653122,1750377038793,-500.0,0.00021998,2]
[366653123,1750377038803,-500.0,0.00021998,2]
[366653124,1750377038812,-500.0,0.00021998,2]
[366653125,1750377038822,-500.0,0.00021998,2]
[366653126,1750377038831,-564.34544744,0.00021998,2]
[366653127,1750377038841,-424.6,0.00021999,6]
[366653128,1750377038851,-460.0,0.00021999,6]
[366653129,1750377038860,-460.0,0.00021999,6]
[366653130,1750377038870,-176.37932673,0.00021999,6]
[366653131,1750377038880,-460.0,0.00021999,6]
[366653132,1750377038890,-460.0,0.00021999,6]
[366653133,1750377038900,-460.0,0.00021999,6]
[366653134,1750377038910,-460.0,0.00021999,6]
[366653135,1750377038919,-460.0,0.00021999,6]
[366653136,1750377038929,-460.0,0.00021999,6]
[366653137,1750377038939,-460.0,0.00021999,6]
[366653138,1750377038949,-460.0,0.00021999,6]
[366653139,1750377038958,-460.0,0.00021999,6]
[366653140,1750377038967,-460.0,0.00021999,6]
[366653141,1750377038977,-460.0,0.00021999,6]
[366653142,1750377038987,-2625.74152989,0.00022,2]
[366653143,1750377038996,-15844.68287281,0.00022,2]
[366653144,1750377039006,-151.0,0.00022,7]
[366653145,1750377039016,-151.0,0.00022,7]
[366653146,1750377039031,-161.08757,0.00022,7]
[366653147,1750377039041,-161.08757,0.00022,7]